[Event "*** Titled Tuesday Blitz"]
[Site "Chess.com"]
[Date "2021.04.20"]
[Round "7"]
[White "vova-79"]
[Black "annamaja"]
[Result "0-1"]
[WhiteElo "2529"]
[BlackElo "2289"]
[TimeControl "180+1"]
[EndTime "11:18:12 PDT"]
[Termination "annamaja won on time"]

1. d4 {[%clk 0:03:00.9]} 1... d5 {[%clk 0:03:00.1]} 2. c4 {[%clk 0:03:00.1]}
2... e6 {[%clk 0:03:00]} 3. Nc3 {[%clk 0:02:59.6]} 3... Nf6 {[%clk 0:03:00.4]}
4. Nf3 {[%clk 0:02:59]} 4... Be7 {[%clk 0:03:00.5]} 5. Bf4 {[%clk 0:02:58.3]}
5... O-O {[%clk 0:03:00.9]} 6. e3 {[%clk 0:02:58]} 6... c6 {[%clk 0:03:00.5]} 7.
Qc2 {[%clk 0:02:55.7]} 7... Nbd7 {[%clk 0:03:00.3]} 8. h3 {[%clk 0:02:54.5]}
8... Re8 {[%clk 0:02:57.5]} 9. cxd5 {[%clk 0:02:53.9]} 9... exd5 {[%clk
0:02:57.4]} 10. Bd3 {[%clk 0:02:53.8]} 10... Nf8 {[%clk 0:02:53.2]} 11. O-O
{[%clk 0:02:53.5]} 11... Ng6 {[%clk 0:02:52.4]} 12. Bh2 {[%clk 0:02:52.8]} 12...
Bd6 {[%clk 0:02:48]} 13. Bxd6 {[%clk 0:02:52.4]} 13... Qxd6 {[%clk 0:02:48.9]}
14. Rab1 {[%clk 0:02:52.9]} 14... a5 {[%clk 0:02:39.8]} 15. a3 {[%clk
0:02:51.6]} 15... b5 {[%clk 0:02:38.8]} 16. Rbc1 {[%clk 0:02:35]} 16... b4
{[%clk 0:02:25.1]} 17. axb4 {[%clk 0:02:25.4]} 17... axb4 {[%clk 0:02:26]} 18.
Na4 {[%clk 0:02:25.2]} 18... Ba6 {[%clk 0:02:17.1]} 19. Nc5 {[%clk 0:02:07.9]}
19... Bxd3 {[%clk 0:02:05.9]} 20. Nxd3 {[%clk 0:02:08.8]} 20... Rec8 {[%clk
0:01:57.2]} 21. Qc5 {[%clk 0:02:06]} 21... Qxc5 {[%clk 0:01:44.9]} 22. Rxc5
{[%clk 0:02:06.9]} 22... Ne4 {[%clk 0:01:40.2]} 23. Rcc1 {[%clk 0:02:02.6]}
23... Rab8 {[%clk 0:01:23.4]} 24. Nc5 {[%clk 0:01:36.4]} 24... Nd6 {[%clk
0:01:08.7]} 25. b3 {[%clk 0:01:31.9]} 25... f6 {[%clk 0:00:52.5]} 26. Ra1 {[%clk
0:01:29.9]} 26... Ra8 {[%clk 0:00:48.4]} 27. Nd3 {[%clk 0:01:24.1]} 27... Ne7
{[%clk 0:00:25.5]} 28. Nxb4 {[%clk 0:01:19.9]} 28... Rxa1 {[%clk 0:00:23.9]} 29.
Rxa1 {[%clk 0:01:18.1]} 29... Rb8 {[%clk 0:00:24.5]} 30. Ra4 {[%clk 0:01:14.7]}
30... Ne4 {[%clk 0:00:24.7]} 31. g4 {[%clk 0:00:35.3]} 31... Kf8 {[%clk
0:00:15]} 32. Nd3 {[%clk 0:00:30.8]} 32... Rxb3 {[%clk 0:00:14.7]} 33. Nf4
{[%clk 0:00:31.1]} 33... Rb1+ {[%clk 0:00:10.9]} 34. Kg2 {[%clk 0:00:29.3]}
34... Rb2 {[%clk 0:00:11.5]} 35. Nd3 {[%clk 0:00:28.2]} 35... Rc2 {[%clk
0:00:11.3]} 36. Nfe1 {[%clk 0:00:23.3]} 36... Rd2 {[%clk 0:00:09.8]} 37. Rb4
{[%clk 0:00:19.8]} 37... h5 {[%clk 0:00:08.8]} 38. Rb2 {[%clk 0:00:19]} 38...
Rxb2 {[%clk 0:00:08]} 39. Nxb2 {[%clk 0:00:19.1]} 39... hxg4 {[%clk 0:00:08.9]}
40. hxg4 {[%clk 0:00:18.9]} 40... Nc8 {[%clk 0:00:06.3]} 41. Ned3 {[%clk
0:00:18.1]} 41... Ke7 {[%clk 0:00:06.2]} 42. f3 {[%clk 0:00:18]} 42... Nc3
{[%clk 0:00:05.2]} 43. Kf1 {[%clk 0:00:15.5]} 43... Kd6 {[%clk 0:00:04.9]} 44.
Ke1 {[%clk 0:00:15.4]} 44... Nb6 {[%clk 0:00:03.8]} 45. Nd1 {[%clk 0:00:15.1]}
45... Nxd1 {[%clk 0:00:02.2]} 46. Kxd1 {[%clk 0:00:16]} 46... Nc4 {[%clk
0:00:03.1]} 47. Ke2 {[%clk 0:00:16.2]} 47... Ke6 {[%clk 0:00:03.1]} 48. Nb4
{[%clk 0:00:14]} 48... Kd6 {[%clk 0:00:03.2]} 49. Kd3 {[%clk 0:00:13.9]} 49...
Nb6 {[%clk 0:00:02]} 50. Na6 {[%clk 0:00:12.1]} 50... Nd7 {[%clk 0:00:02]} 51.
Kc3 {[%clk 0:00:11]} 51... Ke7 {[%clk 0:00:01]} 52. Kb4 {[%clk 0:00:10.3]} 52...
Kd6 {[%clk 0:00:01.5]} 53. Ka5 {[%clk 0:00:09.5]} 53... Nf8 {[%clk 0:00:01.2]}
54. Nc5 {[%clk 0:00:08.7]} 54... Ng6 {[%clk 0:00:01.4]} 55. Nd3 {[%clk
0:00:05.5]} 55... Nh4 {[%clk 0:00:01.8]} 56. f4 {[%clk 0:00:05.3]} 56... Ng2
{[%clk 0:00:01.3]} 57. g5 {[%clk 0:00:04.2]} 57... Nxe3 {[%clk 0:00:01.8]} 58.
gxf6 {[%clk 0:00:03.7]} 58... gxf6 {[%clk 0:00:02.7]} 59. Kb4 {[%clk 0:00:03.8]}
59... Ng2 {[%clk 0:00:02.5]} 60. Kc3 {[%clk 0:00:03.6]} 60... Ke6 {[%clk
0:00:03]} 61. Kb4 {[%clk 0:00:02.9]} 61... Kf5 {[%clk 0:00:03.5]} 62. Kc5 {[%clk
0:00:03]} 62... Nxf4 {[%clk 0:00:03.9]} 63. Nb4 {[%clk 0:00:03]} 63... Ke4
{[%clk 0:00:03.5]} 64. Nxc6 {[%clk 0:00:01.5]} 64... Ne6+ {[%clk 0:00:04]} 65.
Kd6 {[%clk 0:00:01.3]} 65... Nxd4 {[%clk 0:00:04.6]} 66. Ne7 {[%clk 0:00:01.2]}
66... Nf5+ {[%clk 0:00:04.3]} 0-1

[Event "*** Titled Tuesday Blitz"]
[Site "Chess.com"]
[Date "2021.04.20"]
[Round "7"]
[White "mac0504"]
[Black "GregShahade"]
[Result "1-0"]
[WhiteElo "2602"]
[BlackElo "2698"]
[TimeControl "180+1"]
[EndTime "11:18:13 PDT"]
[Termination "mac0504 won by checkmate"]

1. e4 {[%clk 0:03:00.6]} 1... e5 {[%clk 0:02:59.9]} 2. Nf3 {[%clk 0:03:00]} 2...
Nc6 {[%clk 0:03:00.2]} 3. Bb5 {[%clk 0:03:00.3]} 3... a6 {[%clk 0:03:00.5]} 4.
Ba4 {[%clk 0:03:00.5]} 4... Nf6 {[%clk 0:03:00.2]} 5. O-O {[%clk 0:03:00.8]}
5... Be7 {[%clk 0:03:00.7]} 6. Re1 {[%clk 0:03:01.2]} 6... b5 {[%clk 0:03:00.8]}
7. Bb3 {[%clk 0:03:01.6]} 7... O-O {[%clk 0:03:01.4]} 8. a4 {[%clk 0:03:00.9]}
8... Bb7 {[%clk 0:03:01.2]} 9. d3 {[%clk 0:03:00.5]} 9... d6 {[%clk 0:03:01.2]}
10. Nc3 {[%clk 0:02:59.4]} 10... Na5 {[%clk 0:03:00.5]} 11. Ba2 {[%clk
0:02:59.1]} 11... b4 {[%clk 0:03:00.9]} 12. Ne2 {[%clk 0:02:59.5]} 12... c5
{[%clk 0:03:00.7]} 13. Nd2 {[%clk 0:02:53.3]} 13... h6 {[%clk 0:02:43.5]} 14.
Ng3 {[%clk 0:02:49.8]} 14... Re8 {[%clk 0:02:39.6]} 15. Nc4 {[%clk 0:02:44.8]}
15... Nxc4 {[%clk 0:02:34.2]} 16. Bxc4 {[%clk 0:02:43.4]} 16... Bf8 {[%clk
0:02:34]} 17. a5 {[%clk 0:02:39.7]} 17... d5 {[%clk 0:02:20.9]} 18. exd5 {[%clk
0:02:37.7]} 18... Bxd5 {[%clk 0:02:19.9]} 19. Be3 {[%clk 0:02:27.1]} 19... Bxc4
{[%clk 0:02:00.1]} 20. dxc4 {[%clk 0:02:28]} 20... Qc7 {[%clk 0:01:58.2]} 21.
Qf3 {[%clk 0:02:13]} 21... e4 {[%clk 0:01:56.2]} 22. Bf4 {[%clk 0:01:51.8]}
22... Qxa5 {[%clk 0:01:12.7]} 23. Rxa5 {[%clk 0:01:49.7]} 23... exf3 {[%clk
0:01:12.3]} 24. Rxe8 {[%clk 0:01:39]} 24... Rxe8 {[%clk 0:01:10.5]} 25. gxf3
{[%clk 0:01:39.5]} 25... Re1+ {[%clk 0:01:07]} 26. Kg2 {[%clk 0:01:35.6]} 26...
Rb1 {[%clk 0:00:42.6]} 27. b3 {[%clk 0:01:31.6]} 27... Rb2 {[%clk 0:00:39.8]}
28. Rxa6 {[%clk 0:00:42.2]} 28... Kh7 {[%clk 0:00:18.5]} 29. Ra8 {[%clk
0:00:24.7]} 29... Be7 {[%clk 0:00:18.5]} 30. Nf5 {[%clk 0:00:25]} 30... Ng8
{[%clk 0:00:10]} 31. Rxg8 {[%clk 0:00:12.1]} 31... Kxg8 {[%clk 0:00:10.9]} 32.
Nxe7+ {[%clk 0:00:12.9]} 32... Kh7 {[%clk 0:00:11.5]} 33. Bd6 {[%clk 0:00:12.6]}
33... Rxc2 {[%clk 0:00:11.2]} 34. Bxc5 {[%clk 0:00:13]} 34... Rc3 {[%clk
0:00:10.5]} 35. Bxb4 {[%clk 0:00:11.8]} 35... Rxb3 {[%clk 0:00:11.1]} 36. Nd5
{[%clk 0:00:12.4]} 36... Kg6 {[%clk 0:00:10.3]} 37. Bd2 {[%clk 0:00:09.1]} 37...
Kf5 {[%clk 0:00:08.6]} 38. Be3 {[%clk 0:00:08.7]} 38... Ke5 {[%clk 0:00:07.1]}
39. Nf4 {[%clk 0:00:05.5]} 39... g5 {[%clk 0:00:06.5]} 40. Ne2 {[%clk
0:00:03.1]} 40... f5 {[%clk 0:00:05.8]} 41. f4+ {[%clk 0:00:03]} 41... Kf6
{[%clk 0:00:05.2]} 42. fxg5+ {[%clk 0:00:03.3]} 42... hxg5 {[%clk 0:00:06.1]}
43. c5 {[%clk 0:00:03]} 43... f4 {[%clk 0:00:05.4]} 44. Bd4+ {[%clk 0:00:03.6]}
44... Kf5 {[%clk 0:00:05.1]} 45. f3 {[%clk 0:00:03.9]} 45... Rb1 {[%clk
0:00:05.1]} 46. Kf2 {[%clk 0:00:04.3]} 46... Rd1 {[%clk 0:00:05.4]} 47. c6
{[%clk 0:00:04.2]} 47... Rd2 {[%clk 0:00:05.7]} 48. Ke1 {[%clk 0:00:03.2]} 48...
Rc2 {[%clk 0:00:06.1]} 49. Nc3 {[%clk 0:00:03.7]} 49... Ke6 {[%clk 0:00:06.3]}
50. Kd1 {[%clk 0:00:02.7]} 50... Rxh2 {[%clk 0:00:05.5]} 51. Ne4 {[%clk
0:00:03.1]} 51... Rh1+ {[%clk 0:00:04.5]} 52. Kc2 {[%clk 0:00:02.8]} 52... g4
{[%clk 0:00:05.2]} 53. fxg4 {[%clk 0:00:02.6]} 53... Rh2+ {[%clk 0:00:06.1]} 54.
Kd3 {[%clk 0:00:02.6]} 54... f3 {[%clk 0:00:07]} 55. Nf2 {[%clk 0:00:02.7]}
55... Rh8 {[%clk 0:00:06.3]} 56. Ke3 {[%clk 0:00:03]} 56... Rc8 {[%clk 0:00:07]}
57. Kxf3 {[%clk 0:00:03.1]} 57... Rxc6 {[%clk 0:00:07.7]} 58. Be3 {[%clk
0:00:03.8]} 58... Rc4 {[%clk 0:00:08.1]} 59. g5 {[%clk 0:00:04.2]} 59... Kf7
{[%clk 0:00:08.7]} 60. Ng4 {[%clk 0:00:04.5]} 60... Kg8 {[%clk 0:00:08.4]} 61.
Ne5 {[%clk 0:00:04.7]} 61... Rc8 {[%clk 0:00:08]} 62. Bf4 {[%clk 0:00:05.1]}
62... Rc3+ {[%clk 0:00:07.8]} 63. Kg4 {[%clk 0:00:05.6]} 63... Rc2 {[%clk
0:00:07.1]} 64. Kf5 {[%clk 0:00:06]} 64... Rg2 {[%clk 0:00:07.2]} 65. g6 {[%clk
0:00:06.3]} 65... Rxg6 {[%clk 0:00:06.3]} 66. Nxg6 {[%clk 0:00:03.9]} 66... Kf7
{[%clk 0:00:07.2]} 67. Bg5 {[%clk 0:00:03.4]} 67... Ke8 {[%clk 0:00:08.1]} 68.
Ne5 {[%clk 0:00:03]} 68... Kf8 {[%clk 0:00:07.9]} 69. Ke6 {[%clk 0:00:02.6]}
69... Ke8 {[%clk 0:00:08.8]} 70. Nf7 {[%clk 0:00:02.4]} 70... Kf8 {[%clk
0:00:09]} 71. Nd6 {[%clk 0:00:01.5]} 71... Kg7 {[%clk 0:00:09.2]} 72. Kf5 {[%clk
0:00:01.7]} 72... Kf8 {[%clk 0:00:09]} 73. Kf6 {[%clk 0:00:02.3]} 73... Kg8
{[%clk 0:00:09.1]} 74. Bh6 {[%clk 0:00:03.2]} 74... Kh7 {[%clk 0:00:09.3]} 75.
Kg5 {[%clk 0:00:04.1]} 75... Kg8 {[%clk 0:00:09.8]} 76. Kg6 {[%clk 0:00:04.7]}
76... Kh8 {[%clk 0:00:10]} 77. Nf5 {[%clk 0:00:04.7]} 77... Kg8 {[%clk
0:00:10.9]} 78. Ne7+ {[%clk 0:00:05.1]} 78... Kh8 {[%clk 0:00:11.4]} 79. Bg7#
{[%clk 0:00:06]} 1-0

[Event "*** Titled Tuesday Blitz"]
[Site "Chess.com"]
[Date "2021.04.20"]
[Round "7"]
[White "kai_nov"]
[Black "NoboaKevin1999"]
[Result "0-1"]
[WhiteElo "2313"]
[BlackElo "2457"]
[TimeControl "180+1"]
[EndTime "11:18:16 PDT"]
[Termination "NoboaKevin1999 won on time"]

1. d4 {[%clk 0:03:00.9]} 1... Nf6 {[%clk 0:02:50.3]} 2. c4 {[%clk 0:03:00.5]}
2... e6 {[%clk 0:02:50.1]} 3. Nc3 {[%clk 0:02:59.7]} 3... Bb4 {[%clk 0:02:47.5]}
4. f3 {[%clk 0:02:59.9]} 4... c5 {[%clk 0:02:29.5]} 5. d5 {[%clk 0:02:59.7]}
5... exd5 {[%clk 0:02:22.7]} 6. cxd5 {[%clk 0:02:59.3]} 6... d6 {[%clk
0:02:22.9]} 7. e4 {[%clk 0:02:52.6]} 7... O-O {[%clk 0:02:22.6]} 8. Ne2 {[%clk
0:02:49.5]} 8... a6 {[%clk 0:02:21]} 9. Ng3 {[%clk 0:02:46.7]} 9... b5 {[%clk
0:02:19.2]} 10. a4 {[%clk 0:02:44.4]} 10... Bb7 {[%clk 0:01:54.2]} 11. Be2
{[%clk 0:01:35]} 11... Qb6 {[%clk 0:01:33.6]} 12. O-O {[%clk 0:01:24.6]} 12...
c4+ {[%clk 0:01:32.5]} 13. Kh1 {[%clk 0:01:24]} 13... Nbd7 {[%clk 0:01:32]} 14.
Nf5 {[%clk 0:01:18]} 14... Ne5 {[%clk 0:01:28]} 15. Qe1 {[%clk 0:00:43.7]} 15...
Kh8 {[%clk 0:01:05.6]} 16. Qh4 {[%clk 0:00:32.4]} 16... Ng6 {[%clk 0:01:00.2]}
17. Qg3 {[%clk 0:00:26.6]} 17... Rae8 {[%clk 0:00:50.6]} 18. h4 {[%clk
0:00:18.8]} 18... Rg8 {[%clk 0:00:34.2]} 19. h5 {[%clk 0:00:18.5]} 19... Ne7
{[%clk 0:00:33.4]} 20. Nxe7 {[%clk 0:00:18.3]} 20... Rxe7 {[%clk 0:00:33.2]} 21.
Bg5 {[%clk 0:00:18.5]} 21... Re5 {[%clk 0:00:19.6]} 22. h6 {[%clk 0:00:16.9]}
22... Ne8 {[%clk 0:00:14.8]} 23. axb5 {[%clk 0:00:15.9]} 23... gxh6 {[%clk
0:00:12.7]} 24. f4 {[%clk 0:00:14.4]} 24... Bxc3 {[%clk 0:00:08.3]} 25. bxc3
{[%clk 0:00:12.8]} 25... Rxe4 {[%clk 0:00:07.9]} 26. Bf3 {[%clk 0:00:11.5]}
26... Re3 {[%clk 0:00:06.1]} 27. bxa6 {[%clk 0:00:11.5]} 27... Bxa6 {[%clk
0:00:05.8]} 28. Rfb1 {[%clk 0:00:11.4]} 28... Qa7 {[%clk 0:00:05.2]} 29. Qf2
{[%clk 0:00:10.3]} 29... hxg5 {[%clk 0:00:04.8]} 30. Rxa6 {[%clk 0:00:08.7]}
30... Qxa6 {[%clk 0:00:04.1]} 31. Qxe3 {[%clk 0:00:09.1]} 31... gxf4 {[%clk
0:00:04.4]} 32. Qxf4 {[%clk 0:00:08.9]} 32... Ng7 {[%clk 0:00:04.9]} 33. Qf6
{[%clk 0:00:08.2]} 33... Qa2 {[%clk 0:00:05.1]} 34. Rb8 {[%clk 0:00:07.7]} 34...
Rxb8 {[%clk 0:00:04]} 35. Qxd6 {[%clk 0:00:07]} 35... Qb1+ {[%clk 0:00:03.7]}
36. Kh2 {[%clk 0:00:06.9]} 36... Rg8 {[%clk 0:00:04.1]} 37. Qf6 {[%clk
0:00:06.7]} 37... Qg6 {[%clk 0:00:04.4]} 38. Qe5 {[%clk 0:00:06.3]} 38... Qf5
{[%clk 0:00:03.3]} 39. Qd4 {[%clk 0:00:06.3]} 39... Qd7 {[%clk 0:00:03.1]} 40.
Qxc4 {[%clk 0:00:06.1]} 40... Rd8 {[%clk 0:00:03.2]} 41. Qd4 {[%clk 0:00:06.2]}
41... Qd6+ {[%clk 0:00:04.1]} 42. Kg1 {[%clk 0:00:05.4]} 42... f6 {[%clk
0:00:05]} 43. c4 {[%clk 0:00:05.7]} 43... Nf5 {[%clk 0:00:05.2]} 44. Qd3 {[%clk
0:00:05.4]} 44... Qe5 {[%clk 0:00:05.4]} 45. c5 {[%clk 0:00:05.3]} 45... Qe3+
{[%clk 0:00:05.1]} 46. Qxe3 {[%clk 0:00:04.9]} 46... Nxe3 {[%clk 0:00:06]} 47.
d6 {[%clk 0:00:05.4]} 47... Nf5 {[%clk 0:00:05.3]} 48. Bd5 {[%clk 0:00:04.7]}
48... Nxd6 {[%clk 0:00:05.2]} 49. cxd6 {[%clk 0:00:04.7]} 49... Rxd6 {[%clk
0:00:06.1]} 50. Be4 {[%clk 0:00:05.3]} 50... Kg7 {[%clk 0:00:07]} 51. Kf2 {[%clk
0:00:05.7]} 51... h6 {[%clk 0:00:07.3]} 52. Kf3 {[%clk 0:00:06.1]} 52... Ra6
{[%clk 0:00:07.6]} 53. g4 {[%clk 0:00:06.2]} 53... Ra4 {[%clk 0:00:08.5]} 54.
Kf4 {[%clk 0:00:06]} 54... Kf7 {[%clk 0:00:08.4]} 55. Kf3 {[%clk 0:00:06]} 55...
Ke6 {[%clk 0:00:08.4]} 56. Bf5+ {[%clk 0:00:06.3]} 56... Ke5 {[%clk 0:00:08.5]}
57. Bd7 {[%clk 0:00:06.6]} 57... Ra3+ {[%clk 0:00:09.4]} 58. Kf2 {[%clk
0:00:06.6]} 58... Kf4 {[%clk 0:00:09.9]} 59. Be6 {[%clk 0:00:06.3]} 59... Kg5
{[%clk 0:00:10.1]} 60. Kg2 {[%clk 0:00:05.7]} 60... Rc3 {[%clk 0:00:11]} 61. Bd7
{[%clk 0:00:05.1]} 61... h5 {[%clk 0:00:10.7]} 62. gxh5 {[%clk 0:00:05]} 62...
Kxh5 {[%clk 0:00:11.6]} 63. Kf2 {[%clk 0:00:05.4]} 63... Kg5 {[%clk 0:00:12.5]}
64. Be6 {[%clk 0:00:05.4]} 64... Kf4 {[%clk 0:00:12.4]} 65. Bd5 {[%clk
0:00:05.6]} 65... f5 {[%clk 0:00:12.4]} 66. Bb7 {[%clk 0:00:05.5]} 66... Rc2+
{[%clk 0:00:12.6]} 67. Kf1 {[%clk 0:00:05.2]} 67... Rb2 {[%clk 0:00:13.5]} 68.
Bc6 {[%clk 0:00:05.4]} 68... Ke3 {[%clk 0:00:13.5]} 69. Bd5 {[%clk 0:00:05.6]}
69... f4 {[%clk 0:00:14]} 70. Bc6 {[%clk 0:00:04.3]} 70... f3 {[%clk 0:00:14.9]}
71. Kg1 {[%clk 0:00:03.8]} 71... f2+ {[%clk 0:00:14.5]} 72. Kg2 {[%clk 0:00:04]}
72... Rb1 {[%clk 0:00:13.7]} 0-1

[Event "*** Titled Tuesday Blitz"]
[Site "Chess.com"]
[Date "2021.04.20"]
[Round "7"]
[White "IANOV0007"]
[Black "Jospem"]
[Result "0-1"]
[WhiteElo "2460"]
[BlackElo "2963"]
[TimeControl "180+1"]
[EndTime "11:18:17 PDT"]
[Termination "Jospem won on time"]

1. Nf3 {[%clk 0:03:00.9]} 1... c5 {[%clk 0:02:59.9]} 2. g3 {[%clk 0:03:00.6]}
2... Nc6 {[%clk 0:03:00.2]} 3. Bg2 {[%clk 0:03:00.5]} 3... g6 {[%clk 0:03:00.9]}
4. c4 {[%clk 0:02:59.2]} 4... Bg7 {[%clk 0:03:01.4]} 5. Nc3 {[%clk 0:02:59.3]}
5... d6 {[%clk 0:03:01.9]} 6. O-O {[%clk 0:02:58.5]} 6... e6 {[%clk 0:03:02.5]}
7. d3 {[%clk 0:02:57.5]} 7... Nge7 {[%clk 0:03:02.8]} 8. Bg5 {[%clk 0:02:56]}
8... h6 {[%clk 0:03:02.7]} 9. Bd2 {[%clk 0:02:53.7]} 9... O-O {[%clk 0:03:02.4]}
10. a3 {[%clk 0:02:53.5]} 10... b6 {[%clk 0:03:01.2]} 11. Rb1 {[%clk 0:02:52.9]}
11... Bb7 {[%clk 0:03:00.7]} 12. b4 {[%clk 0:02:52.8]} 12... Qd7 {[%clk
0:03:00.9]} 13. Qc1 {[%clk 0:02:51.5]} 13... Kh7 {[%clk 0:02:58.5]} 14. Rd1
{[%clk 0:02:49.1]} 14... f5 {[%clk 0:02:57.1]} 15. e3 {[%clk 0:02:47.1]} 15...
Rac8 {[%clk 0:02:51.4]} 16. Nb5 {[%clk 0:02:44.8]} 16... e5 {[%clk 0:02:38.2]}
17. Nc3 {[%clk 0:02:37]} 17... Nd8 {[%clk 0:02:27.1]} 18. e4 {[%clk 0:02:19.4]}
18... g5 {[%clk 0:02:20.8]} 19. bxc5 {[%clk 0:02:14.7]} 19... dxc5 {[%clk
0:02:14.1]} 20. Nd5 {[%clk 0:02:11.5]} 20... f4 {[%clk 0:02:09.2]} 21. Bc3
{[%clk 0:02:03.5]} 21... Ng6 {[%clk 0:02:05.8]} 22. a4 {[%clk 0:01:56.9]} 22...
Nf7 {[%clk 0:01:32.7]} 23. a5 {[%clk 0:01:54.6]} 23... bxa5 {[%clk 0:01:24]} 24.
Bxa5 {[%clk 0:01:49.7]} 24... Bc6 {[%clk 0:01:21.1]} 25. Bc3 {[%clk 0:01:43.6]}
25... Qd6 {[%clk 0:01:03.9]} 26. Qa3 {[%clk 0:01:39.6]} 26... g4 {[%clk
0:01:00.9]} 27. Nd2 {[%clk 0:01:35.9]} 27... Ng5 {[%clk 0:01:00.6]} 28. Qxa7
{[%clk 0:01:23.5]} 28... Rf7 {[%clk 0:01:00.5]} 29. Qa1 {[%clk 0:01:13.9]} 29...
Rcf8 {[%clk 0:00:59.8]} 30. Rb6 {[%clk 0:01:04.9]} 30... fxg3 {[%clk 0:00:58.5]}
31. fxg3 {[%clk 0:01:03.1]} 31... Nh3+ {[%clk 0:00:36]} 32. Bxh3 {[%clk
0:01:01.5]} 32... gxh3 {[%clk 0:00:36.9]} 33. Rf1 {[%clk 0:00:56.4]} 33... Rxf1+
{[%clk 0:00:33.9]} 34. Nxf1 {[%clk 0:00:55.3]} 34... Rf3 {[%clk 0:00:28.7]} 35.
Qd1 {[%clk 0:00:52.5]} 35... Rf7 {[%clk 0:00:24.1]} 36. Nfe3 {[%clk 0:00:50.9]}
36... Rb7 {[%clk 0:00:21]} 37. Nf5 {[%clk 0:00:44.9]} 37... Qd7 {[%clk
0:00:21.6]} 38. Rxb7 {[%clk 0:00:41.8]} 38... Qxb7 {[%clk 0:00:22.5]} 39. Qf1
{[%clk 0:00:35.3]} 39... Bxd5 {[%clk 0:00:14.7]} 40. exd5 {[%clk 0:00:34.3]}
40... Qb3 {[%clk 0:00:14.6]} 41. Qc1 {[%clk 0:00:32.2]} 41... Bf8 {[%clk
0:00:11.5]} 42. d6 {[%clk 0:00:29.5]} 42... Qb7 {[%clk 0:00:11]} 43. Qc2 {[%clk
0:00:28.3]} 43... Qd7 {[%clk 0:00:11.1]} 44. Qf2 {[%clk 0:00:26.8]} 44... Bxd6
{[%clk 0:00:11.1]} 45. Nxd6 {[%clk 0:00:24.4]} 45... Qxd6 {[%clk 0:00:12]} 46.
Qf7+ {[%clk 0:00:23.8]} 46... Kh8 {[%clk 0:00:12.6]} 47. Qf5 {[%clk 0:00:21.6]}
47... Kg8 {[%clk 0:00:11.1]} 48. Kf2 {[%clk 0:00:19.6]} 48... Kg7 {[%clk
0:00:09.5]} 49. Ke3 {[%clk 0:00:19.2]} 49... Qe7 {[%clk 0:00:04.1]} 50. Qxh3
{[%clk 0:00:18]} 50... Qg5+ {[%clk 0:00:04.2]} 51. Ke2 {[%clk 0:00:17.5]} 51...
Qf6 {[%clk 0:00:02.7]} 52. Qd7+ {[%clk 0:00:16.5]} 52... Kg8 {[%clk 0:00:03.4]}
53. Qd5+ {[%clk 0:00:15.4]} 53... Kh7 {[%clk 0:00:04.1]} 54. Qxc5 {[%clk
0:00:15.1]} 54... h5 {[%clk 0:00:04.7]} 55. Qc7+ {[%clk 0:00:14.3]} 55... Kh6
{[%clk 0:00:05]} 56. Bd2+ {[%clk 0:00:13.4]} 56... Nf4+ {[%clk 0:00:04]} 57.
gxf4 {[%clk 0:00:13]} 57... Kg6 {[%clk 0:00:04.7]} 58. Qxe5 {[%clk 0:00:11.6]}
58... Qa6 {[%clk 0:00:05.5]} 59. Qg5+ {[%clk 0:00:10.9]} 59... Kf7 {[%clk
0:00:05.6]} 60. Qxh5+ {[%clk 0:00:10.9]} 60... Kf8 {[%clk 0:00:06.5]} 61. Qh8+
{[%clk 0:00:10.2]} 61... Kf7 {[%clk 0:00:07]} 62. Qh7+ {[%clk 0:00:09.8]} 62...
Ke8 {[%clk 0:00:07.1]} 63. Qg8+ {[%clk 0:00:09]} 63... Ke7 {[%clk 0:00:07.5]}
64. Bb4+ {[%clk 0:00:05.5]} 64... Kd7 {[%clk 0:00:08.2]} 65. Qg7+ {[%clk
0:00:05.4]} 65... Kd8 {[%clk 0:00:09.1]} 66. Qf8+ {[%clk 0:00:05.2]} 66... Kd7
{[%clk 0:00:09.8]} 67. Qe7+ {[%clk 0:00:05.2]} 67... Kc8 {[%clk 0:00:10.7]} 68.
Qe8+ {[%clk 0:00:04.7]} 68... Kc7 {[%clk 0:00:11.4]} 69. Qe7+ {[%clk 0:00:04.3]}
69... Kc8 {[%clk 0:00:12.1]} 70. f5 {[%clk 0:00:03.3]} 70... Qa2+ {[%clk
0:00:11.9]} 71. Ke3 {[%clk 0:00:03.3]} 71... Qb1 {[%clk 0:00:12.8]} 72. Qe6+
{[%clk 0:00:02.9]} 72... Kb7 {[%clk 0:00:12.8]} 73. Qd7+ {[%clk 0:00:02.3]}
73... Ka8 {[%clk 0:00:12.9]} 74. Qc6+ {[%clk 0:00:01.8]} 74... Ka7 {[%clk
0:00:13.8]} 0-1